[Event "XVIII La Palma-ch 2019"]
[Site "La Palma"]
[Date "2019.03.31"]
[Round "5.1"]
[White "Alonso Perez, Alfredo"]
[Black "Guerra Arrocha, Daniel"]
[Result "0-1"]
[ECO "A40"]
[WhiteElo "1730"]
[BlackElo "2038"]
[Annotator "NA RC"]
[PlyCount "86"]
[EventDate "2019.03.29"]
[EventType "swiss"]
[EventCountry "ESP"]
[SourceTitle "playchess.com"]
[Source "ChessBase"]
[SourceQuality "1"]
[TimeControl "5400+30"]

1. d4 {[%emt 0:00:00]} g6 {[%emt 0:00:00]} 2. c4 {[%emt 0:00:00]} Bg7 {[%emt 0:00:00]} 3. e4 {[%emt 0:00:51]} c5 {[%emt 0:00:07]} 4. Ne2 {[%emt 0:07:54]} Qb6 {[%emt 0:02:35]} 5. dxc5 {[%emt 0:02:00]} Qxc5 {[%emt 0:00:18]} 6. Nec3 {[%emt 0:03:07]} Nf6 {[%emt 0:01:13]} 7. Be3 {[%emt 0:00:41]} Qa5 {[%emt 0:00:07]} 8. Nd2 {[%emt 0:01:43]} d6 {[%emt 0:01:32]} 9. Be2 {[%emt 0:00:02]} Nc6 {[%emt 0:01:25]} 10. O-O {[%emt 0:01:12]} O-O {[%emt 0:00:23]} 11. a3 {[%emt 0:02:55]} Be6 {[%emt 0:00:41]} 12. b4 {[%emt 0:03:44]} Qd8 {[%emt 0:00:55]} 13. Nd5 {[%emt 0:03:57]} Ne5 {[%emt 0:01:17]} 14. f3 {[%emt 0:01:36]} Bd7 {[%emt 0:03:40]} 15. Nxf6+ $14 {[%emt 0:05:17]} Bxf6 {[%emt 0:00:06]} 16. Rc1 {[%emt 0:00:31]} Nc6 {[%emt 0:00:14]} 17. Nb3 {[%emt 0:00:36]} Bb2 {[%emt 0:00:17]} 18. Ra1 {[%emt 0:01:30]} Bxa1 {[%emt 0:00:07]} 19. Qxa1 {[%emt 0:00:16]} f6 {[%emt 0:00:33]} 20. c5 {[%emt 0:02:23]} Be6 {[%emt 0:01:24]} 21. Qb1 {[%emt 0:02:25]} b6 {[%emt 0:02:04]} 22. Rd1 {[%emt 0:01:28]} bxc5 {[%emt 0:00:10]} 23. Nxc5 {[%emt 0:01:04]} Qb6 {[%emt 0:01:00]} 24. Nxe6 {[%emt 0:02:13]} Qxe3+ {[%emt 0:00:04]} 25. Kf1 {[%emt 0:00:11]} Rfc8 {[%emt 0:00:27]} 26. Qa2 {[%emt 0:06:42]} Kh8 {[%emt 0:00:19]} 27. Ba6 {[%emt 0:02:57]} Rcb8 {[%emt 0:00:54]} 28. Qd5 {[%emt 0:06:18]} Qb6 {[%emt 0:04:36]} 29. b5 {[%emt 0:02:36]} Nd8 {[%emt 0:01:25]} 30. Rc1 {[%emt 0:12:16]} Nxe6 {[%emt 0:01:27]} 31. Qxe6 {[%emt 0:00:02]} Re8 {[%emt 0:00:48]} 32. Rc6 {[%emt 0:05:25]} Qa5 {[%emt 0:00:23]} 33. Qb3 {[%emt 0:11:27]} Rad8 {[%emt 0:00:53]} 34. Qd3 {[%emt 0:02:00]} Rd7 {[%emt 0:00:31]} 35. Qc2 {[%emt 0:01:27]} Qxa3 {[%emt 0:00:17]} 36. Bc8 {[%emt 0:02:29]} Rdd8 {[%emt 0:00:22]} 37. Be6 {[%emt 0:00:03]} Qa1+ {[%emt 0:00:20]} 38. Kf2 {[%emt 0:01:43]} Qd4+ {[%emt 0:00:11]} 39. Kf1 {[%emt 0:00:10]} Qe5 {[%emt 0:00:20]} 40. Qb3 {[%emt 0:00:57]} Rb8 {[%emt 0:00:21]} 41. Bc4 {[%emt 0:00:51]} Rec8 {[%emt 0:00:09]} 42. Qa2 {[%emt 0:02:00]} Rxc6 {[%emt 0:01:10]} 43. bxc6 {[%emt 0:00:13]} Qc5 {[%emt 0:00:05]} 0-1

[Event "XVIII La Palma-ch 2019"]
[Site "La Palma"]
[Date "2019.03.31"]
[Round "5.2"]
[White "Ros Octavio De Toledo, Eduardo"]
[Black "Rodriguez Miranda, Sergio"]
[Result "0-1"]
[ECO "E97"]
[WhiteElo "2061"]
[BlackElo "1957"]
[Annotator "NA RC"]
[PlyCount "58"]
[EventDate "2019.03.29"]
[EventType "swiss"]
[EventCountry "ESP"]
[SourceTitle "playchess.com"]
[Source "ChessBase"]
[SourceQuality "1"]
[TimeControl "5400+30"]

{[%evp 8,58,44,41,36,36,32767,32767,32767,32767,32767,32,48,28,37,32767,32767,32767,32767,103,32767,104,32767,95,74,75,52,79,125,102,32767,32767,85,0,32767,32767,0,32767,32767,32767,32767,32767,32767,32767,32767,32767,-29993,32767,32767,-29995,-29995,-29995,-29996]} 1. Nf3 {[%emt 0:00:00]} Nf6 {[%emt 0:02:42]} 2. c4 {[%emt 0:00:05]} g6 {[%emt 0:00:09]} 3. Nc3 {[%emt 0:00:40]} Bg7 {[%emt 0:00:08]} 4. e4 {[%emt 0:00:22]} d6 {[%emt 0:00:07]} 5. d4 {[%emt 0:00:17]} O-O {[%emt 0:00:05]} 6. Be2 {[%emt 0:00:23]} e5 {[%emt 0:02:34]} 7. O-O {[%emt 0:00:52]} Nc6 {[%emt 0:03:27]} 8. d5 {[%emt 0:02:41]} Ne7 {[%emt 0:01:21]} 9. b4 {[%emt 0:00:52]} Ne8 {[%emt 0:00:11]} 10. c5 {[%emt 0:04:39]} f5 {[%emt 0:00:11]} 11. Nd2 {[%emt 0:03:55]} Nf6 {[%emt 0:00:03]} 12. f3 {[%emt 0:00:46]} f4 {[%emt 0:00:08]} 13. a4 {[%emt 0:03:38]} g5 {[%emt 0:02:48]} 14. Ba3 {[%emt 0:02:00]} Rf7 {[%emt 0:02:45]} 15. b5 {[%emt 0:02:07]} Bf8 {[%emt 0:00:44]} 16. Nc4 {[%emt 0:01:41]} Ng6 {[%emt 0:00:04]} 17. b6 {[%emt 0:05:41]} axb6 {[%emt 0:17:48] LiveBook: 7 Games} 18. cxd6 {[%emt 0:04:03]} cxd6 {[%emt 0:02:21]} 19. Nb5 {[%emt 0:05:02]} Ne8 {[%emt 0:02:58]} 20. Qb3 {[%emt 0:04:09]} (20. Bb4 $16) 20... h5 {[%emt 0:00:52]} 21. Bb4 {[%emt 0:07:31]} g4 {[%emt 0:01:45]} 22. Rfc1 {[%emt 0:07:18]} Rg7 {[%emt 0:28:02]} 23. Kh1 {[%emt 0:02:31]} Nh8 {[%emt 0:03:22]} 24. Rg1 {[%emt 0:06:57]} Nf7 {[%emt 0:02:26]} 25. Rac1 {[%emt 0:04:09]} g3 {[%emt 0:02:21]} 26. h3 {[%emt 0:00:52]} Qh4 {[%emt 0:01:18]} 27. Bf1 {[%emt 0:00:27]} Ng5 {[%emt 0:01:18]} 28. Ncxd6 {[%emt 0:16:51] [#]} Nxh3 $1 {[%emt 0:00:35]} 29. gxh3 {[%emt 0:00:15]} Bxh3 {[%emt 0:00:04]} 0-1

[Event "XVIII La Palma-ch 2019"]
[Site "La Palma"]
[Date "2019.03.31"]
[Round "5.4"]
[White "Lopez Rodriguez, Hector"]
[Black "Garcia De La Banda, Francisco"]
[Result "0-1"]
[ECO "B07"]
[WhiteElo "2212"]
[BlackElo "1882"]
[Annotator "NA RC"]
[PlyCount "82"]
[EventDate "2019.03.29"]
[EventType "swiss"]
[EventCountry "ESP"]
[SourceTitle "playchess.com"]
[Source "ChessBase"]
[SourceQuality "1"]
[TimeControl "5400+30"]

{[%evp 8,59,81,64,86,75,100,88,85,32767,32767,91,117,32767,32767,62,125,137,165,95,116,25,147,151,149,129,134,139,222,227,230,32767,263,32767,32767,233,32767,308,293,269,313,32767,125,148,32767,32767,32767,32767,178,158,181,98,105,110]} 1. e4 {[%emt 0:00:00]} d6 {[%emt 0:00:06]} 2. d4 {[%emt 0:00:00]} Nf6 {[%emt 0:00:01]} 3. Nc3 {[%emt 0:00:00]} c6 {[%emt 0:00:03]} 4. f4 {[%emt 0:00:28]} b5 {[%emt 0:00:58] LiveBook: 11 Games} (4... Qa5 5. Bd3 e5 6. Nf3 Bg4 7. Be3 Nbd7 8. O-O Be7 9. h3 Bxf3 10. Qxf3 O-O 11. Ne2 Bd8 12. c3 b5 13. a3 Qa4 14. Rad1 Qb3 15. Rd2 Nb6 16. dxe5 dxe5 17. fxe5 Nfd7 18. Nd4 Qa4 19. Nxc6 {1-0 (47) Karjakin,S (2753)-Petrosian,T (2598) St Petersburg 2018}) 5. e5 {[%emt 0:02:26]} b4 {[%emt 0:00:10]} 6. exf6 {[%emt 0:01:22] B07: Pirc Defence: Miscellaneous Systems} bxc3 {[%emt 0:00:02]} 7. fxg7 {[%emt 0:01:03]} Bxg7 {[%emt 0:00:13]} 8. bxc3 {[%emt 0:00:33]} c5 {[%emt 0:00:58]} 9. Qf3 $146 {[%emt 0:14:58]} ({Predecessor:} 9. Bb5+ Nd7 10. Bc6 Rb8 11. Ne2 Qb6 12. Bf3 {1-0 (31) Ascic,P (2387)-Oreskovic,P (2146) Vinkovci 2007}) 9... d5 {[%emt 0:00:12]} 10. Bb5+ {[%emt 0:01:10]} Bd7 {[%emt 0:00:21]} 11. Bxd7+ {[%emt 0:05:06]} ({Wrong is} 11. Qxd5 $2 Bxb5 12. Qxc5 (12. Qxa8 $2 {loses.} Bc6 $19) 12... a6 $19) 11... Qxd7 {[%emt 0:00:41]} (11... Nxd7 $14 12. Qxd5 cxd4) 12. Ne2 {[%emt 0:01:25]} ({Much worse is} 12. dxc5 $6 Na6 $11) 12... Nc6 {[%emt 0:00:34]} 13. Be3 {[%emt 0:04:40]} ({White should try} 13. dxc5 $18 Rb8 14. O-O) 13... cxd4 {[%emt 0:02:45]} 14. cxd4 {[%emt 0:00:00]} (14. Bxd4 $16 Nxd4 15. cxd4 (15. Nxd4 Rc8 $14)) 14... Na5 {[%emt 0:00:09]} (14... Nb4 $14) 15. O-O {[%emt 0:02:25]} Rc8 {[%emt 0:00:48]} 16. c3 {[%emt 0:02:48]} Nc4 {[%emt 0:00:16]} 17. f5 {[%emt 0:02:39]} h5 {[%emt 0:00:53] [#]} (17... Nxe3 $16 18. Qxe3 O-O) 18. Bg5 $1 {[%emt 0:02:28]} Bh6 {[%emt 0:01:09]} 19. Qxh5 {[%emt 0:06:06]} Bg7 {[%emt 0:04:58]} 20. Qg4 {[%emt 0:02:20]} Nd6 {[%emt 0:10:21] [#]} 21. Bxe7 $1 {[%emt 0:14:17] Discovered Attack} Bh6 {[%emt 0:00:29]} 22. Bg5 {[%emt 0:06:30]} Rg8 {[%emt 0:00:53]} 23. h4 {[%emt 0:00:47]} Ne4 {[%emt 0:00:19]} 24. Qh5 {[%emt 0:01:55]} Bxg5 {[%emt 0:02:19]} 25. hxg5 {[%emt 0:00:06]} Rxg5 {[%emt 0:00:09]} 26. Qh8+ {[%emt 0:00:15]} Ke7 {[%emt 0:00:01]} 27. Qe5+ {[%emt 0:00:18]} Kf8 {[%emt 0:00:59]} 28. Rf3 {[%emt 0:03:18]} f6 {[%emt 0:02:35]} 29. Qe6 {[%emt 0:01:39]} ({Better is} 29. Qh2 $18) 29... Qxe6 {[%emt 0:00:17]} 30. fxe6 $16 {[%emt 0:00:10]} Ke7 {[%emt 0:00:02]} 31. Nf4 {[%emt 0:01:35]} Kd6 {[%emt 0:00:43]} 32. Rb1 {[%emt 0:00:54]} Nd2 {[%emt 0:00:39]} 33. Rb7 {[%emt 0:07:04]} Nxf3+ {[%emt 0:00:16]} 34. Kf2 {[%emt 0:00:05]} Nd2 {[%emt 0:02:05]} 35. Rd7+ {[%emt 0:01:36]} Kc6 {[%emt 0:00:03]} 36. Rxa7 {[%emt 0:01:58]} Ne4+ {[%emt 0:00:13]} 37. Kf1 {[%emt 0:01:55]} Kb6 {[%emt 0:02:09]} 38. Rf7 {[%emt 0:02:14]} Rf5 {[%emt 0:00:17]} 39. g3 {[%emt 0:01:12]} Nxg3+ {[%emt 0:00:17]} 40. Kg2 {[%emt 0:00:15]} Ne4 {[%emt 0:00:08]} 41. Nd3 {[%emt 0:03:20]} Rg8+ {[%emt 0:00:04]} 0-1

[Event "XVIII La Palma-ch 2019"]
[Site "La Palma"]
[Date "2019.04.01"]
[Round "6.1"]
[White "Guerra Arrocha, Daniel"]
[Black "Rodriguez Bittar, Karim Javier"]
[Result "1-0"]
[ECO "C55"]
[WhiteElo "2038"]
[BlackElo "1940"]
[Annotator "NA RC"]
[PlyCount "107"]
[EventDate "2019.03.29"]
[EventType "swiss"]
[EventCountry "ESP"]
[SourceTitle "playchess.com"]
[Source "ChessBase"]
[SourceQuality "1"]
[TimeControl "5400+30"]

{[%evp 36,105,38,45,63,56,23,37,70,45,32767,0,0,7,29,21,39,3,41,4,14,0,21,0,55,30,33,0,7,14,56,66,61,51,70,80,72,40,51,42,27,0,0,-29,34,0,25,0,0,0,-14,0,-11,0,0,-12,32767,32767,32767,32767,0,-14,32767,0,0,0,0,11,31,36,30,16]} 1. e4 {[%emt 0:09:20]} e5 {[%emt 0:00:04]} 2. Nf3 {[%emt 0:00:05]} Nc6 {[%emt 0:00:04]} 3. Bc4 {[%emt 0:00:04]} Nf6 {[%emt 0:01:18]} 4. d3 {[%emt 0:00:13]} Be7 {[%emt 0:00:43]} 5. O-O {[%emt 0:00:06]} d6 {[%emt 0:01:22]} 6. a4 {[%emt 0:00:23]} O-O {[%emt 0:01:51]} 7. Re1 {[%emt 0:00:06]} Be6 {[%emt 0:01:33]} 8. Nbd2 {[%emt 0:00:04]} h6 {[%emt 0:02:32]} 9. c3 {[%emt 0:00:06]} Bxc4 {[%emt 0:01:45] C55: Two Knights: 4 d3, 4 d4 exd4 5 e5 and Max Lange Attack} 10. dxc4 $146 {[%emt 0:00:16]} ({Predecessor:} 10. Nxc4 Re8 11. b4 Bf8 12. b5 Ne7 13. Ne3 Ng6 14. c4 c6 15. Rb1 Qd7 16. Qb3 Rad8 17. Bd2 d5 18. bxc6 bxc6 19. Ba5 Rc8 20. cxd5 cxd5 21. Nxd5 Nxd5 22. Qxd5 {½-½ (22) Pruijssers,R (2537)-Nikolic,P (2619) Netherlands 2014}) 10... Nh7 {[%emt 0:06:36]} 11. b4 {[%emt 0:00:15]} Qd7 {[%emt 0:00:54]} 12. b5 {[%emt 0:00:27]} Nd8 {[%emt 0:01:18]} 13. c5 {[%emt 0:00:20]} Ne6 {[%emt 0:01:35]} 14. cxd6 {[%emt 0:00:09]} cxd6 {[%emt 0:03:02]} 15. Nc4 {[%emt 0:01:55]} Qc7 {[%emt 0:01:39]} 16. Ne3 {[%emt 0:00:10]} Nc5 {[%emt 0:12:42]} 17. Nd5 {[%emt 0:01:01]} Qd8 {[%emt 0:02:07]} 18. Ba3 {[%emt 0:00:15]} Rc8 {[%emt 0:01:07]} 19. Nd2 {[%emt 0:02:20]} Nf6 {[%emt 0:05:16]} 20. Nxf6+ {[%emt 0:00:07]} Bxf6 {[%emt 0:00:07]} 21. Nc4 {[%emt 0:00:03]} Be7 {[%emt 0:01:00]} 22. Qd5 {[%emt 0:00:09]} Qc7 {[%emt 0:26:52]} 23. Nb2 {[%emt 0:16:21]} (23. Ne3 $14) 23... Rfd8 {[%emt 0:02:37]} 24. Bb4 {[%emt 0:00:46]} Qd7 {[%emt 0:01:41]} 25. Nc4 {[%emt 0:00:54]} Qe6 {[%emt 0:03:32]} 26. Ne3 {[%emt 0:00:07]} Kf8 {[%emt 0:06:43]} 27. Bxc5 {[%emt 0:03:11]} Qxd5 {[%emt 0:00:35]} 28. Nxd5 {[%emt 0:00:02]} ({Much weaker is} 28. exd5 Rxc5 29. g3 Rxc3 $17) 28... Rxc5 {[%emt 0:03:14]} 29. f3 {[%emt 0:00:02]} Rd7 {[%emt 0:03:41]} 30. Red1 {[%emt 0:00:04]} Bd8 {[%emt 0:00:50]} 31. Rd3 {[%emt 0:00:13]} Bb6 {[%emt 0:02:21]} 32. Kf1 {[%emt 0:00:16]} Rc8 {[%emt 0:00:21]} 33. a5 {[%emt 0:01:01]} Bc5 {[%emt 0:00:26]} 34. Ra4 {[%emt 0:01:08]} Ke8 {[%emt 0:02:38]} 35. Rd2 {[%emt 0:01:08]} f6 {[%emt 0:01:37]} 36. Rda2 {[%emt 0:00:47]} Rf7 {[%emt 0:00:45]} 37. g4 {[%emt 0:00:03]} Kd7 {[%emt 0:00:41]} 38. b6 {[%emt 0:01:07]} a6 {[%emt 0:00:35]} 39. Rc4 {[%emt 0:00:14]} Rff8 {[%emt 0:01:02]} (39... Kc6 $15) 40. Ra1 {[%emt 0:00:22]} h5 {[%emt 0:00:35]} 41. h3 {[%emt 0:00:24]} hxg4 {[%emt 0:00:03]} 42. hxg4 {[%emt 0:00:30]} Rh8 {[%emt 0:00:13]} 43. Kg2 {[%emt 0:00:16]} Rh7 {[%emt 0:01:06]} 44. Rh1 $1 {[%emt 0:00:06]} Rxh1 {[%emt 0:00:22]} 45. Kxh1 {[%emt 0:00:02]} Rh8+ {[%emt 0:00:15]} 46. Kg2 {[%emt 0:00:01]} Kc6 {[%emt 0:00:42]} 47. Ra4 {[%emt 0:00:01]} Rh7 {[%emt 0:00:53]} 48. Ra1 {[%emt 0:00:01]} Rh8 {[%emt 0:00:31]} 49. Rb1 {[%emt 0:00:08]} Kd7 {[%emt 0:00:24]} 50. Kg3 {[%emt 0:00:59]} Kc6 {[%emt 0:00:37]} 51. f4 {[%emt 0:07:49]} Kd7 {[%emt 0:00:29]} 52. f5 {[%emt 0:00:29]} Rh7 {[%emt 0:00:31]} 53. Nc7 $11 {[%emt 0:00:05]} Rh8 {[%emt 0:00:58]} 54. Ne6 {[%emt 0:00:28]} 1-0

[Event "XVIII La Palma-ch 2019"]
[Site "La Palma"]
[Date "2019.04.01"]
[Round "6.2"]
[White "Rodriguez Miranda, Sergio"]
[Black "Haertl, Siegfried"]
[Result "1-0"]
[ECO "D36"]
[WhiteElo "1957"]
[BlackElo "1945"]
[Annotator "NA RC"]
[PlyCount "161"]
[EventDate "2019.03.29"]
[EventType "swiss"]
[EventCountry "ESP"]
[SourceTitle "playchess.com"]
[Source "ChessBase"]
[SourceQuality "1"]
[TimeControl "5400+30"]

{[%evp 33,154,29,43,12,128,114,112,77,146,32767,127,43,47,45,37,24,137,125,164,19,42,71,70,54,150,116,185,101,136,75,125,62,112,63,84,70,97,36,32,43,47,49,37,0,0,0,0,-46,0,0,0,0,0,0,17,0,0,0,0,0,0,0,0,0,0,0,0,0,0,0,0,0,0,0,0,0,12,8,6,0,14,0,0,0,0,0,31,22,21,14,33,13,26,18,10,0,11,15,40,11,27,16,27,23,30,30,23,-26,31,-15,0,0,0,0,53,46,47,39,38,0,41,46,182]} 1. d4 {[%emt 0:03:11]} Nf6 {[%emt 0:00:00]} 2. c4 {[%emt 0:00:03]} e6 {[%emt 0:00:00]} 3. Nc3 {[%emt 0:00:02]} d5 {[%emt 0:00:04]} 4. cxd5 {[%emt 0:00:06]} exd5 {[%emt 0:00:03]} 5. Bg5 {[%emt 0:00:08]} Be7 {[%emt 0:01:08]} 6. e3 {[%emt 0:02:46]} O-O {[%emt 0:00:14]} 7. Qc2 {[%emt 0:00:08]} c6 {[%emt 0:00:37]} 8. Bd3 {[%emt 0:00:18]} h6 {[%emt 0:00:47]} 9. Bh4 {[%emt 0:03:37]} Re8 {[%emt 0:00:50]} 10. Nf3 {[%emt 0:02:43]} Nbd7 {[%emt 0:00:34]} 11. O-O {[%emt 0:00:31]} Ne4 {[%emt 0:02:38]} 12. Bxe7 {[%emt 0:00:09]} Qxe7 {[%emt 0:00:06]} 13. Rab1 {[%emt 0:01:58]} a5 {[%emt 0:04:48]} 14. a3 {[%emt 0:14:42]} Nf8 {[%emt 0:03:28]} 15. b4 {[%emt 0:02:07] D36: Queen's Gambit Declined: Exchange Variation: Main line (5 Bg5 c6 6 Qc2)} (15. Bxe4 dxe4 16. Nd2 Bf5 17. Rbe1 Bg6 18. Qb3 b5 19. a4 b4 20. Ne2 Ne6 21. Ng3 c5 22. Ndxe4 cxd4 23. exd4 Nxd4 {½-½ (40) Ismayilov,G (2401)-Sosulin,E (2373) Donskoj 2018}) 15... axb4 {[%emt 0:00:16]} 16. axb4 {[%emt 0:00:07]} Ra3 {[%emt 0:05:34]} 17. Bxe4 {[%emt 0:10:07]} dxe4 {[%emt 0:01:34]} 18. Ne5 $146 {[%emt 0:00:40]} ({Predecessor:} 18. Nd2 Bf5 19. Nc4 Ra7 20. b5 Rc8 21. Nb6 Rd8 22. bxc6 bxc6 {1-0 (80) Bialy,R (2095)-Antoniewski,R Biala Podlaska 1994}) 18... f6 {[%emt 0:06:58]} (18... Be6 $11 19. Qc1 (19. Nxe4 Bf5 $11) 19... Raa8 20. Nxe4 Bf5) 19. Nc4 {[%emt 0:00:14]} Ra7 {[%emt 0:00:17]} 20. b5 {[%emt 0:03:27]} Kh8 {[%emt 0:06:11]} 21. Rfc1 {[%emt 0:15:12]} Be6 {[%emt 0:05:08]} 22. Nd2 {[%emt 0:04:50]} ({Better is} 22. Nb6 $16) 22... f5 {[%emt 0:02:04]} 23. bxc6 {[%emt 0:04:31]} bxc6 {[%emt 0:00:11]} 24. Na4 {[%emt 0:03:00]} Rea8 {[%emt 0:03:11]} (24... Bd5 $11) 25. Nb6 {[%emt 0:01:46]} Ra2 {[%emt 0:00:37]} 26. Nxa8 {[%emt 0:01:20]} (26. Qxc6 $18 R8a6 27. Ndc4 (27. Rc2 Qa3 $16)) 26... Rxc2 {[%emt 0:00:12]} 27. Rxc2 {[%emt 0:00:04]} Qa3 {[%emt 0:05:01]} 28. Nb6 {[%emt 0:00:44]} Qd3 {[%emt 0:00:39] [#]} 29. Rbc1 $1 {[%emt 0:00:26]} Kh7 {[%emt 0:01:28] [#]} (29... Ng6 $16 30. Na4 Qa3) 30. Ndc4 {[%emt 0:00:35]} (30. Nf1 $1 $18) 30... Ng6 {[%emt 0:02:18]} 31. Na4 {[%emt 0:03:25]} (31. g3 $18 {has better winning chances.}) 31... Bxc4 {[%emt 0:02:38]} 32. Nc5 {[%emt 0:06:14]} Qa3 {[%emt 0:02:02]} 33. Rxc4 {[%emt 0:00:04]} f4 {[%emt 0:02:47]} 34. R4c3 {[%emt 0:00:39]} ({Reject} 34. Nxe4 fxe3 35. R4c3 (35. Rxc6 Nf4 $17) 35... exf2+ 36. Nxf2 Qb2 $11) 34... Qb2 {[%emt 0:00:23]} 35. Nxe4 {[%emt 0:00:15]} fxe3 {[%emt 0:00:05]} 36. fxe3 {[%emt 0:00:06]} Nh4 $1 {[%emt 0:02:05]} 37. Nf2 {[%emt 0:02:41]} Nf5 {[%emt 0:03:35]} 38. Nd1 {[%emt 0:04:10]} (38. R3c2 $5 {[%cal Rc2b2]} Qa3 39. Nd1 $16 (39. Rxc6 Qxe3 40. Rd1 Nxd4 $11)) 38... Qe2 {[%emt 0:00:00]} 39. Nf2 {[%emt 0:02:39]} Nxe3 {[%emt 0:01:26]} 40. Rd3 {[%emt 0:01:30]} Nd5 {[%emt 0:03:21]} 41. Rdd1 {[%emt 0:02:41]} Qe6 {[%emt 0:01:50]} 42. Re1 {[%emt 0:00:53]} Qg6 {[%emt 0:00:43]} 43. Nh3 {[%emt 0:00:38]} Qg4 {[%emt 0:00:56]} 44. Rcd1 {[%emt 0:00:40]} Ne3 {[%emt 0:01:53]} 45. Rd2 {[%emt 0:00:29]} Nc4 {[%emt 0:02:25]} 46. Rd3 {[%emt 0:01:58]} Nb2 {[%emt 0:01:35]} 47. Rd2 {[%emt 0:00:54]} Nc4 {[%emt 0:00:40]} 48. Nf2 {[%emt 0:00:28]} Qf4 {[%emt 0:01:33]} 49. Rdd1 {[%emt 0:01:32]} Ne3 {[%emt 0:02:12]} 50. Rd3 {[%emt 0:00:22]} Nc2 {[%emt 0:01:25]} 51. Re4 {[%emt 0:00:28]} Qd6 {[%emt 0:02:26]} 52. h3 {[%emt 0:00:26]} Nb4 {[%emt 0:00:33]} 53. Rf3 {[%emt 0:00:39]} Nd5 {[%emt 0:02:08]} 54. Ng4 {[%emt 0:01:26]} c5 {[%emt 0:00:19]} 55. dxc5 {[%emt 0:00:26]} Qxc5+ {[%emt 0:00:17]} 56. Ne3 {[%emt 0:00:25]} Nf6 {[%emt 0:01:06]} 57. Rc4 {[%emt 0:00:09]} Qb6 {[%emt 0:00:43]} 58. Kh1 {[%emt 0:00:14]} Ne4 {[%emt 0:02:02]} 59. Nf1 {[%emt 0:00:58]} Nf6 {[%emt 0:01:42]} 60. Ng3 {[%emt 0:00:44]} Qb1+ {[%emt 0:00:58]} 61. Kh2 {[%emt 0:00:05]} Qb8 {[%emt 0:00:32]} 62. Rcf4 {[%emt 0:00:22]} Qe5 {[%emt 0:00:58]} 63. Kh1 {[%emt 0:00:16]} Qe1+ {[%emt 0:00:25]} 64. Kh2 {[%emt 0:00:18]} Qe5 {[%emt 0:00:09]} 65. Rf5 {[%emt 0:00:04]} Qd6 {[%emt 0:00:20]} 66. Kh1 {[%emt 0:00:12]} Qd1+ {[%emt 0:00:17]} 67. Rf1 {[%emt 0:00:03]} Qd3 {[%emt 0:00:49]} (67... Qd6 $5 {[%cal Rd6g3]} 68. R5f3 Qe5 $14) 68. R5f3 {[%emt 0:00:03]} Qc4 {[%emt 0:02:08]} 69. Nf5 {[%emt 0:00:28]} Ne4 {[%emt 0:01:32]} 70. Rf4 {[%emt 0:02:22]} Qd3 {[%emt 0:00:39]} 71. R1f3 {[%emt 0:00:41]} Qd1+ {[%emt 0:00:55]} 72. Kh2 {[%emt 0:00:05]} Nd2 {[%emt 0:02:22]} 73. Rf2 {[%emt 0:00:15]} Qe1 {[%emt 0:01:00]} (73... g5 $5 {[%cal Rg5f4]} 74. Rd4 (74. Ne3 Nf1+ 75. Rxf1 Qd6 $11 {[%mdl 64] Pin}) 74... Nf1+ 75. Kh1 Ng3+ {[%mdl 64] Discovered Attack (Double check)} 76. Kh2 Nf1+ 77. Kh1 Ng3+ {[%mdl 64] Discovered Attack (Double check)} 78. Kh2 Nf1+ $11) 74. Ng3 {[%emt 0:00:41]} Qe5 {[%emt 0:01:34]} 75. Rf5 {[%emt 0:01:03]} Qd6 {[%emt 0:00:25]} 76. R5f4 {[%emt 0:00:36]} Qe5 {[%emt 0:00:22]} 77. Rg4 {[%emt 0:00:43]} h5 $18 {[%emt 0:03:01]} (77... Qd5 $14) 78. Rf5 {[%emt 0:02:07]} Qc7 {[%emt 0:00:14]} 79. Rxh5+ {[%emt 0:00:04]} Kg8 {[%emt 0:00:01]} 80. Rhg5 Nf1+ {[%emt 0:00:04] Rf5 Qe5+ [%emt 00:00:04]} 81. Kh1 {[%emt 0:00:03]} 1-0

[Event "XVIII La Palma-ch 2019"]
[Site "La Palma"]
[Date "2019.04.01"]
[Round "6.3"]
[White "Garcia De La Banda, Francisco"]
[Black "Alonso Perez, Alfredo"]
[Result "0-1"]
[ECO "A45"]
[WhiteElo "1882"]
[BlackElo "1730"]
[Annotator "NA RC"]
[PlyCount "50"]
[EventDate "2019.03.29"]
[EventType "swiss"]
[EventCountry "ESP"]
[SourceTitle "playchess.com"]
[Source "ChessBase"]
[SourceQuality "1"]
[TimeControl "5400+30"]

1. f4 {[%emt 0:00:00]} g6 {[%emt 0:01:57]} 2. Nf3 {[%emt 0:01:07]} Bg7 {[%emt 0:00:34]} 3. e3 {[%emt 0:00:17]} Nf6 {[%emt 0:02:18]} 4. d4 {[%emt 0:01:26]} b6 {[%emt 0:01:35]} 5. Bd3 {[%emt 0:00:33]} Bb7 {[%emt 0:01:13]} 6. O-O {[%emt 0:00:11] A45: Trompowsky Attack} (6. Qe2 d5 7. c3 O-O 8. h4 Ne4 9. Rh2 h5 10. Ng5 Qc8 11. Nd2 f5 {0-1 (51) Chigaev,M (2551)-Lintchevski,D (2522) St Petersburg 2016}) 6... O-O {[%emt 0:02:58]} 7. Nbd2 {[%emt 0:00:17]} d5 {[%emt 0:05:49]} 8. Qe2 {[%emt 0:01:57]} Nbd7 {[%emt 0:07:16]} 9. c4 $146 {[%emt 0:01:59]} ({Predecessor:} 9. Ne5 c5 10. c3 Qc7 11. b3 Nxe5 12. fxe5 Nd7 13. Bb2 e6 14. Qg4 Rae8 {0-1 (46) Niehaus,F (2220)-Lehmann,K (2331) Germany 2017}) 9... c5 {[%emt 0:01:25]} 10. b3 {[%emt 0:00:29]} cxd4 {[%emt 0:01:07]} 11. exd4 {[%emt 0:00:11]} dxc4 {[%emt 0:01:49]} 12. bxc4 {[%emt 0:00:14]} e6 {[%emt 0:07:08]} 13. Bb2 {[%emt 0:00:19]} Qc7 {[%emt 0:01:09]} 14. Ne5 {[%emt 0:00:16]} Rac8 {[%emt 0:01:30]} 15. Rae1 {[%emt 0:03:51]} Rfd8 {[%emt 0:05:08] [#]} 16. Nxf7 $1 {[%emt 0:01:06]} Re8 {[%emt 0:02:06]} 17. Ng5 {[%emt 0:05:45]} Nf8 {[%emt 0:03:55]} 18. Nge4 {[%emt 0:05:52]} (18. Rc1 $18 {is more deadly.}) 18... Nh5 {[%emt 0:05:08]} (18... Red8 $16) 19. Qg4 $2 {[%emt 0:01:15]} (19. g3 $18) 19... Rcd8 {[%emt 0:00:30]} 20. Ng5 {[%emt 0:02:58]} Bxd4+ {[%emt 0:10:59]} 21. Bxd4 {[%emt 0:00:00]} Rxd4 {[%emt 0:00:18]} 22. Re3 {[%emt 0:04:24]} Nxf4 $2 {[%emt 0:03:37]} ({Better is} 22... Red8 $19 23. Nxe6 Qc8) 23. Qg3 $4 {[%emt 0:03:51]} (23. Nde4 $18 {and all is fine.} Bxe4 24. Nxe4) 23... Rxd3 {[%emt 0:09:04]} 24. Rxf4 {[%emt 0:00:17]} Qc5 {[%emt 0:00:28]} 25. Rxf8+ {[%emt 0:00:48]} Rxf8 $19 {[%emt 0:01:52]} 0-1